lending/lending_fUSD_20250114
["ID","MTS","AMOUNT","RATE_DAILY","PERIOD"]
[348864224,1736829032377,-500.0,9.994e-05,2]
[348864225,1736829032386,-500.0,9.994e-05,2]
[348864226,1736829032397,-500.0,9.994e-05,2]
[348864227,1736829032406,-881.47,9.994e-05,2]
[348864228,1736829032417,-509.06,9.994e-05,2]
[348864229,1736829032427,-500.0,9.994e-05,2]
[348864230,1736829032436,-500.0,9.994e-05,2]
[348864231,1736829032446,-500.0,9.994e-05,2]
[348864232,1736829032455,-500.0,9.994e-05,2]
[348864233,1736829032465,-500.0,9.994e-05,2]
[348864234,1736829032474,-506.57,9.994e-05,2]
[348864235,1736829032484,-500.0,9.994e-05,2]
[348864236,1736829032494,-509.30120251,9.994e-05,2]
[348864237,1736829032504,-500.0,9.994e-05,2]
[348864238,1736829032514,-310.6956362,9.994e-05,2]
[348864239,1736829032524,-500.0,9.994e-05,2]
[348864240,1736829032536,-500.0,9.994e-05,2]
[348864241,1736829032545,-500.0,9.994e-05,2]
[348864242,1736829032555,-500.0,9.994e-05,2]
[348864243,1736829032566,-500.0,9.994e-05,2]
[348864244,1736829032576,-500.0,9.994e-05,2]
[348864245,1736829032586,-660.52,9.994e-05,2]
[348864246,1736829032596,-812.01,9.994e-05,2]
[348864247,1736829032606,-500.0,9.994e-05,2]
[348864248,1736829032617,-500.0,9.994e-05,2]
[348864249,1736829032628,-500.0,9.994e-05,2]
[348864250,1736829032637,-500.0,9.994e-05,2]
[348864251,1736829032647,-500.0,9.994e-05,2]
[348864252,1736829032656,-500.0,9.994e-05,2]
[348864253,1736829032665,-500.0,9.994e-05,2]
[348864254,1736829032675,-500.0,9.994e-05,2]
[348864255,1736829032684,-826.08,9.994e-05,2]
[348864256,1736829032694,-500.0,9.994e-05,2]
[348864257,1736829032703,-895.32,9.994e-05,2]
[348864258,1736829032712,-500.0,9.994e-05,2]
[348864259,1736829032722,-500.0,9.994e-05,2]
[348864260,1736829032731,-822.15,9.994e-05,2]
[348864261,1736829032741,-500.0,9.994e-05,2]
[348864262,1736829032750,-500.0,9.994e-05,2]
[348864263,1736829032760,-500.0,9.994e-05,2]
[348864264,1736829032769,-500.0,9.994e-05,2]
[348864265,1736829032778,-500.0,9.994e-05,2]
[348864266,1736829032788,-500.0,9.994e-05,2]
[348864267,1736829032798,-500.0,9.994e-05,2]
[348864268,1736829032807,-500.0,9.994e-05,2]
[348864269,1736829032817,-674.51,9.994e-05,2]
[348864270,1736829032826,-604.17,9.994e-05,2]
[348864271,1736829032835,-500.0,9.994e-05,2]
[348864272,1736829032845,-500.0,9.994e-05,2]
[348864273,1736829032856,-581.07,9.994e-05,2]
[348864274,1736829032866,-500.0,9.994e-05,2]
[348864275,1736829032877,-500.0,9.994e-05,2]
[348864276,1736829032886,-500.0,9.994e-05,2]
[348864277,1736829032895,-500.0,9.994e-05,2]
[348864278,1736829032905,-500.0,9.994e-05,2]
[348864279,1736829032914,-815.88,9.994e-05,2]
[348864280,1736829032924,-500.0,9.994e-05,2]
[348864281,1736829032934,-500.0,9.994e-05,2]
[348864282,1736829032943,-556.15,9.994e-05,2]
[348864283,1736829032953,-500.0,9.994e-05,2]
[348864284,1736829032962,-596.94,9.994e-05,2]
[348864285,1736829032971,-500.0,9.994e-05,2]
[348864286,1736829032980,-500.0,9.994e-05,2]
[348864287,1736829032990,-2311.9,9.994e-05,2]
[348864288,1736829032999,-500.0,9.994e-05,2]
[348864289,1736829033009,-795.2,9.994e-05,2]
[348864290,1736829033018,-3896.68,9.994e-05,2]
[348864291,1736829033027,-500.0,9.994e-05,2]
[348864292,1736829033036,-2262.43,9.994e-05,2]
[348864293,1736829033046,-1349.92,9.994e-05,2]
[348864294,1736829033055,-500.0,9.994e-05,2]
[348864295,1736829033065,-500.0,9.994e-05,2]
[348864296,1736829033075,-500.0,9.994e-05,2]
[348864297,1736829033084,-1522.29,9.994e-05,2]
[348864298,1736829033094,-4003.96,9.994e-05,2]
[348864299,1736829033104,-847.05,9.994e-05,2]
[348864300,1736829033113,-998.01,9.994e-05,2]
[348864301,1736829033123,-500.0,9.994e-05,2]
[348864302,1736829033132,-610.74,9.994e-05,2]
[348864303,1736829033141,-500.0,9.994e-05,2]
[348864304,1736829033151,-500.0,9.994e-05,2]
[348864305,1736829033160,-913.24,9.994e-05,2]
[348864306,1736829033171,-500.0,9.994e-05,2]
[348864307,1736829033185,-1100.81,9.994e-05,2]
[348864308,1736829033194,-213.06061717,9.994e-05,2]
[348864309,1736829033203,-500.0,9.994e-05,2]
[348864310,1736829033212,-500.0,9.994e-05,2]
[348864311,1736829033223,-1145.19,9.995e-05,2]
[348864312,1736829033232,-500.0,9.995e-05,2]
[348864313,1736829033241,-500.0,9.995e-05,2]
[348864314,1736829033251,-500.0,9.995e-05,2]
[348864315,1736829033261,-945.58,9.995e-05,2]
[348864316,1736829033270,-500.0,9.995e-05,2]
[348864317,1736829033279,-500.0,9.995e-05,2]
[348864318,1736829033289,-500.0,9.995e-05,2]
[348864319,1736829033299,-500.0,9.995e-05,2]
[348864320,1736829033308,-500.0,9.995e-05,2]
[348864321,1736829033318,-500.0,9.995e-05,2]
[348864322,1736829033328,-526.45,9.995e-05,2]
[348864323,1736829033337,-500.0,9.995e-05,2]
[348864324,1736829033348,-500.0,9.995e-05,2]
[348864325,1736829033358,-1627.81,9.995e-05,2]
[348864326,1736829033367,-428.08623562,9.995e-05,2]
[348864327,1736829033377,-500.0,9.995e-05,2]
[348864328,1736829033386,-500.0,9.995e-05,2]
[348864329,1736829033396,-393.71910862,9.995e-05,2]
[348864330,1736829033406,-500.0,9.995e-05,2]
[348864331,1736829033415,-505.79052929,9.995e-05,2]
[348864332,1736829033426,-500.0,9.995e-05,2]
[348864333,1736829033435,-512.08709066,9.995e-05,2]
[348864334,1736829033445,-477.54016217,9.995e-05,2]
[348864335,1736829033455,-1652.36,9.995e-05,2]
[348864336,1736829033464,-500.0,9.995e-05,2]
[348864337,1736829033474,-500.0,9.995e-05,2]
[348864338,1736829033483,-504.07975324,9.995e-05,2]
[348864339,1736829033493,-1975.36,9.995e-05,2]
[348864340,1736829033502,-500.0,9.995e-05,2]
[348864341,1736829033513,-500.0,9.995e-05,2]
[348864342,1736829033522,-500.0,9.995e-05,2]
[348864343,1736829033532,-510.63990879,9.995e-05,2]
[348864344,1736829033543,-503.48320087,9.995e-05,2]
[348864345,1736829033552,-503.42061907,9.995e-05,2]
[348864346,1736829033562,-506.15546508,9.995e-05,2]
[348864347,1736829033571,-554.75957725,9.995e-05,2]
[348864348,1736829033580,-158.81707603,9.995e-05,2]
[348864349,1736829033589,-500.0,9.995e-05,2]
[348864350,1736829033599,-505.38869247,9.995e-05,2]
[348864351,1736829033608,-1662.97,9.995e-05,2]
[348864352,1736829033618,-500.0,9.995e-05,2]
[348864353,1736829033627,-540.09086533,9.995e-05,2]
[348864354,1736829033636,-500.0,9.995e-05,2]
[348864355,1736829033646,-503.47968925,9.995e-05,2]
[348864356,1736829033656,-500.0,9.995e-05,2]
[348864357,1736829033666,-500.0,9.995e-05,2]
[348864358,1736829033675,-500.0,9.995e-05,2]
[348864359,1736829033685,-4305.37,9.995e-05,2]
[348864360,1736829033694,-1934.54,9.995e-05,2]
[348864361,1736829033704,-3551.81,9.995e-05,2]
[348864362,1736829033713,-500.0,9.995e-05,2]
[348864363,1736829033723,-929.91,9.995e-05,2]
[348864364,1736829033732,-500.0,9.995e-05,2]
[348864365,1736829033742,-500.0,9.995e-05,2]
[348864366,1736829033751,-1629.07,9.995e-05,2]
[348864367,1736829033760,-500.0,9.995e-05,2]
[348864368,1736829033770,-500.0,9.995e-05,2]
[348864369,1736829033779,-527.56,9.995e-05,2]
[348864370,1736829033788,-1768.5,9.995e-05,2]
[348864371,1736829033798,-500.0,9.995e-05,2]
[348864372,1736829033807,-500.0,9.995e-05,2]
[348864373,1736829033817,-976.26,9.995e-05,2]
[348864374,1736829033827,-500.0,9.995e-05,2]
[348864375,1736829033836,-2118.8,9.995e-05,2]
[348864376,1736829033845,-970.91,9.995e-05,2]
[348864377,1736829033855,-868.84,9.995e-05,2]
[348864378,1736829033864,-875.85,9.995e-05,2]
[348864379,1736829033873,-500.0,9.995e-05,2]
[348864380,1736829033883,-2296.57,9.995e-05,2]
[348864381,1736829033892,-500.0,9.995e-05,2]
[348864382,1736829033902,-697.11,9.995e-05,2]
[348864383,1736829033911,-2954.54,9.995e-05,2]
[348864384,1736829033920,-1438.82,9.995e-05,2]
[348864385,1736829033929,-1023.31,9.995e-05,2]
[348864386,1736829033939,-2852.0,9.995e-05,2]
[348864387,1736829033948,-8401.63,9.995e-05,2]
[348864388,1736829033958,-672.33,9.995e-05,2]
[348864389,1736829033968,-500.0,9.995e-05,2]
[348864390,1736829033978,-924.36,9.995e-05,2]
[348864391,1736829033987,-1555.61,9.995e-05,2]
[348864392,1736829033996,-1358.64,9.995e-05,2]
[348864393,1736829034005,-500.0,9.995e-05,2]
[348864394,1736829034015,-2808.14,9.995e-05,2]
[348864395,1736829034024,-1325.32,9.995e-05,2]
[348864396,1736829034033,-4013.24,9.995e-05,2]
[348864397,1736829034042,-4766.03,9.995e-05,2]
[348864398,1736829034051,-1897.58,9.995e-05,2]
[348864399,1736829034061,-1445.53,9.995e-05,2]
[348864400,1736829034069,-1580.91,9.995e-05,2]
[348864401,1736829034079,-596.52,9.995e-05,2]
[348864402,1736829034088,-500.0,9.996e-05,2]
[348864403,1736829034097,-1074.01,9.996e-05,2]
[348864404,1736829034107,-502.23589323,9.996e-05,2]
[348864405,1736829034117,-500.0,9.996e-05,2]
[348864406,1736829034126,-502.46426183,9.996e-05,2]
[348864407,1736829034136,-579.22371529,9.996e-05,2]
[348864408,1736829034146,-500.0,9.996e-05,2]
[348864409,1736829034156,-500.0,9.996e-05,2]
[348864410,1736829034165,-500.0,9.996e-05,2]
[348864411,1736829034175,-500.0,9.996e-05,2]
[348864412,1736829034187,-502.32411432,9.996e-05,2]
[348864413,1736829034197,-646.05,9.996e-05,2]
[348864414,1736829034206,-500.0,9.996e-05,2]
[348864415,1736829034216,-500.0,9.996e-05,2]
[348864416,1736829034226,-500.0,9.996e-05,2]
[348864417,1736829034236,-834.08,9.996e-05,2]
[348864418,1736829034246,-557.46,9.996e-05,2]
[348864419,1736829034257,-633.44,9.996e-05,2]
[348864420,1736829034267,-774.5,9.996e-05,2]
[348864421,1736829034276,-501.88083228,9.996e-05,2]
[348864422,1736829034285,-500.0,9.996e-05,2]
[348864423,1736829034295,-500.0,9.996e-05,2]
[348864424,1736829034304,-500.0,9.996e-05,2]
[348864425,1736829034313,-500.0,9.996e-05,2]
[348864426,1736829034322,-500.0,9.996e-05,2]
[348864427,1736829034331,-505.68118884,9.996e-05,2]
[348864428,1736829034341,-504.60712974,9.996e-05,2]
[348864429,1736829034350,-523.0,9.996e-05,2]
[348864430,1736829034359,-506.77982468,9.996e-05,2]
[348864431,1736829034369,-500.0,9.996e-05,2]
[348864432,1736829034379,-849.2,9.996e-05,2]
[348864433,1736829034388,-500.0,9.996e-05,2]
[348864434,1736829034398,-846.08,9.996e-05,2]
[348864435,1736829034407,-819.9,9.996e-05,2]
[348864436,1736829034416,-500.0,9.996e-05,2]
[348864437,1736829034425,-500.0,9.996e-05,2]
[348864438,1736829034435,-510.67729577,9.996e-05,2]
[348864439,1736829034444,-500.0,9.996e-05,2]
[348864440,1736829034453,-500.0,9.996e-05,2]
[348864441,1736829034463,-506.14747057,9.996e-05,2]
[348864442,1736829034474,-500.0,9.996e-05,2]
[348864443,1736829034483,-500.0,9.996e-05,2]
[348864444,1736829034492,-500.0,9.996e-05,2]
[348864445,1736829034502,-500.0,9.996e-05,2]
[348864446,1736829034512,-500.0,9.996e-05,2]
[348864447,1736829034522,-500.0,9.996e-05,2]
[348864448,1736829034531,-500.0,9.996e-05,2]
[348864449,1736829034540,-500.0,9.996e-05,2]
[348864450,1736829034549,-500.0,9.996e-05,2]
[348864451,1736829034563,-500.0,9.996e-05,2]
[348864452,1736829034575,-948.31,9.996e-05,2]
[348864453,1736829034584,-500.0,9.996e-05,2]
[348864454,1736829034594,-500.0,9.996e-05,2]
[348864455,1736829034603,-500.0,9.996e-05,2]
[348864456,1736829034613,-500.0,9.996e-05,2]
[348864457,1736829034622,-500.0,9.996e-05,2]
[348864458,1736829034631,-1071.78,9.996e-05,2]
[348864459,1736829034641,-562.62,9.996e-05,2]
[348864460,1736829034650,-500.0,9.996e-05,2]
[348864461,1736829034659,-500.0,9.996e-05,2]
[348864462,1736829034668,-500.0,9.996e-05,2]
[348864463,1736829034678,-1193.43,9.996e-05,2]
[348864464,1736829034687,-500.0,9.996e-05,2]
[348864465,1736829034696,-2079.18,9.996e-05,2]
[348864466,1736829034706,-500.0,9.996e-05,2]
[348864467,1736829034715,-500.0,9.996e-05,2]
[348864468,1736829034724,-500.0,9.996e-05,2]
[348864469,1736829034734,-500.0,9.996e-05,2]
[348864470,1736829034742,-3779.2,9.996e-05,2]
[348864471,1736829034751,-850.64,9.996e-05,2]
[348864472,1736829034761,-500.0,9.996e-05,2]
[348864473,1736829034770,-9176.58,9.996e-05,2]
[348864474,1736829034780,-500.0,9.996e-05,2]
[348864475,1736829034789,-500.0,9.996e-05,2]
[348864476,1736829034799,-500.0,9.996e-05,2]
[348864477,1736829034808,-500.0,9.996e-05,2]
[348864478,1736829034817,-500.0,9.996e-05,2]
[348864479,1736829034827,-834.46,9.996e-05,2]
[348864480,1736829034836,-667.59,9.996e-05,2]
[348864481,1736829034846,-500.0,9.996e-05,2]
[348864482,1736829034855,-692.17,9.996e-05,2]
[348864483,1736829034864,-1890.62,9.996e-05,2]
[348864484,1736829034874,-2286.7,9.996e-05,2]
[348864485,1736829034885,-500.0,9.996e-05,2]
[348864486,1736829034895,-887.92,9.996e-05,2]
[348864487,1736829034904,-500.0,9.996e-05,2]
[348864488,1736829034914,-500.0,9.996e-05,2]
[348864489,1736829034923,-732.5,9.996e-05,2]
[348864490,1736829034932,-1650.4,9.996e-05,2]
[348864491,1736829034942,-661.51,9.996e-05,2]
[348864492,1736829034952,-500.0,9.996e-05,2]
[348864493,1736829034961,-789.4,9.996e-05,2]
[348864494,1736829034971,-619.34027351,9.996e-05,2]
[348864495,1736829034981,-790.36,9.996e-05,2]
[348864496,1736829034991,-1037.17,9.996e-05,2]
[348864497,1736829035000,-500.0,9.996e-05,2]
[348864498,1736829035011,-504.95319518,9.996e-05,2]
[348864499,1736829035022,-673.37,9.996e-05,2]
[348864500,1736829035034,-2452.74,9.996e-05,2]
[348864501,1736829035043,-500.0,9.996e-05,2]
[348864502,1736829035053,-500.0,9.996e-05,2]
[348864503,1736829035064,-876.84,9.996e-05,2]
[348864504,1736829035074,-2230.1,9.996e-05,2]
[348864505,1736829035083,-717.0,9.996e-05,2]
[348864506,1736829035094,-500.0,9.996e-05,2]
[348864507,1736829035104,-500.0,9.996e-05,2]
[348864508,1736829035113,-500.0,9.996e-05,2]
[348864509,1736829035122,-500.0,9.996e-05,2]
[348864510,1736829035131,-1341.91,9.996e-05,2]
[348864511,1736829035142,-4645.66,9.996e-05,2]
[348864512,1736829035152,-500.0,9.996e-05,2]
[348864513,1736829035166,-500.0,9.996e-05,2]
[348864514,1736829035176,-500.0,9.996e-05,2]
[348864515,1736829035187,-755.52,9.996e-05,2]
[348864516,1736829035196,-1747.08,9.996e-05,2]
[348864517,1736829035205,-500.0,9.996e-05,2]
[348864518,1736829035215,-34.95452344,9.996e-05,2]
[348864519,1736829035233,-465.04547656,9.996e-05,2]
[348864520,1736829035243,-1132.84798464,9.996e-05,2]
[348864521,1736829035258,-848.62385211,9.996e-05,2]
[348864522,1736829035269,-965.44158239,9.996e-05,2]
[348864523,1736829035284,-473.55658086,9.996e-05,2]
[348864524,1736829035293,-500.0,9.996e-05,2]
[348864525,1736829035470,-509.04341914,9.996e-05,2]
[348864526,1736829035520,-2.22979481,9.996e-05,2]
[348864527,1736829035531,-500.0,9.996e-05,2]
[348864528,1736829035542,-500.0,9.996e-05,2]
[348864529,1736829035552,-317.60820969,9.996e-05,2]
[348864536,1736829037652,-182.39179031,9.996e-05,2]
[348864537,1736829037662,-839.13,9.997e-05,2]
[348864538,1736829037671,-3349.01,9.997e-05,2]
[348864539,1736829037681,-629.46820969,9.997e-05,2]
[348864540,1736829037813,-132.67179031,9.997e-05,2]
[348864541,1736829037822,-500.0,9.997e-05,2]
[348864542,1736829037832,-1130.67,9.997e-05,2]
[348864543,1736829037842,-1000.0,9.997e-05,2]
[348864544,1736829037851,-987.65,9.997e-05,2]
[348864545,1736829037861,-500.0,9.997e-05,2]
[348864546,1736829037871,-2286.31,9.997e-05,2]
[348864547,1736829037880,-320.06664658,9.998e-05,2]
[348864548,1736829037890,-500.0,9.998e-05,2]
[348864549,1736829037901,-511.85982179,9.998e-05,2]
[348864550,1736829037911,-500.0,9.998e-05,2]
[348864551,1736829037920,-500.0,9.998e-05,2]
[348864552,1736829037929,-500.0,9.998e-05,2]
[348864553,1736829037938,-500.0,9.998e-05,2]
[348864554,1736829037948,-500.0,9.998e-05,2]
[348864555,1736829037956,-500.0,9.998e-05,2]
[348864556,1736829037966,-500.0,9.998e-05,2]
[348864557,1736829037974,-500.0,9.998e-05,2]
[348864559,1736829037983,-498.68391406,9.998e-05,2]
[348864561,1736829037993,-500.0,9.998e-05,2]
[348864563,1736829038003,-500.0,9.998e-05,2]
[348864565,1736829038012,-500.0,9.998e-05,2]
[348864567,1736829038022,-500.0,9.998e-05,2]
[348864569,1736829038031,-500.0,9.998e-05,2]
[348864571,1736829038040,-500.0,9.998e-05,2]
[348864573,1736829038049,-500.0,9.998e-05,2]
[348864575,1736829038058,-500.0,9.998e-05,2]
[348864577,1736829038067,-381.05715982,9.998e-05,2]
[348864579,1736829038076,-500.0,9.998e-05,2]
[348864581,1736829038086,-500.0,9.998e-05,2]
[348864582,1736829038095,-422.86014994,9.998e-05,2]
[348864584,1736829038104,-358.27096567,9.998e-05,2]
[348864586,1736829038113,-500.0,9.998e-05,2]
[348864588,1736829038122,-500.0,9.998e-05,2]
[348864590,1736829038131,-500.0,9.998e-05,2]
[348864592,1736829038140,-500.0,9.998e-05,2]
[348864594,1736829038150,-1143.69,9.998e-05,2]
[348864596,1736829038159,-500.0,9.998e-05,2]
[348864598,1736829038169,-500.0,9.998e-05,2]
[348864600,1736829038182,-500.0,9.998e-05,2]
[348864602,1736829038192,-500.0,9.998e-05,2]
[348864603,1736829038202,-500.0,9.998e-05,2]
[348864605,1736829038211,-500.0,9.998e-05,2]
[348864608,1736829038221,-500.0,9.998e-05,2]
[348864610,1736829038232,-500.0,9.998e-05,2]
[348864612,1736829038241,-1021.25,9.998e-05,2]
[348864614,1736829038251,-2333.596,9.998e-05,2]
[348864615,1736829038261,-175.408,9.998e-05,2]
[348864616,1736829038270,-533.31067741,9.998e-05,2]
[348864617,1736829038278,-500.0,9.998e-05,2]
[348864618,1736829038287,-500.0,9.998e-05,2]
[348864619,1736829038296,-500.0,9.998e-05,2]
[348864621,1736829038305,-500.0,9.998e-05,2]
[348864622,1736829038314,-500.0,9.998e-05,2]
[348864623,1736829038323,-500.0,9.998e-05,2]
[348864624,1736829038332,-1782.37,9.998e-05,2]
[348864625,1736829038340,-500.0,9.998e-05,2]
[348864626,1736829038349,-500.0,9.998e-05,2]
[348864627,1736829038358,-500.0,9.998e-05,2]
[348864628,1736829038368,-500.0,9.998e-05,2]
[348864629,1736829038376,-500.0,9.998e-05,2]
[348864630,1736829038385,-500.0,9.998e-05,2]
[348864631,1736829038394,-3383.4,9.998e-05,2]
[348864632,1736829038403,-1869.92,9.998e-05,2]
[348864633,1736829038412,-500.0,9.998e-05,2]
[348864634,1736829038421,-500.0,9.998e-05,2]
[348864635,1736829038430,-1401.44,9.998e-05,2]
[348864636,1736829038439,-500.0,9.998e-05,2]
[348864637,1736829038448,-500.0,9.998e-05,2]
[348864638,1736829038457,-500.0,9.998e-05,2]
[348864639,1736829038465,-607.463741,9.998e-05,2]
[348864640,1736829038474,-502.68433515,9.998e-05,2]
[348864641,1736829038483,-500.0,9.998e-05,2]
[348864643,1736829038493,-634.798473,9.998e-05,2]
[348864645,1736829038502,-3459.75,9.998e-05,2]
[348864647,1736829038513,-500.0,9.998e-05,2]
[348864649,1736829038522,-500.0,9.998e-05,2]
[348864651,1736829038532,-500.0,9.998e-05,2]
[348864653,1736829038541,-500.0,9.998e-05,2]
[348864655,1736829038551,-1116.42,9.998e-05,2]
[348864657,1736829038560,-500.0,9.998e-05,2]
[348864659,1736829038569,-500.0,9.998e-05,2]
[348864661,1736829038578,-504.89189713,9.998e-05,2]
[348864663,1736829038588,-444.40700712,9.998e-05,2]
[348864665,1736829038597,-500.0,9.998e-05,2]
[348864667,1736829038606,-598.52854957,9.998e-05,2]
[348864669,1736829038616,-500.0,9.998e-05,2]
[348864671,1736829038625,-500.0,9.998e-05,2]
[348864673,1736829038634,-556.65118873,9.998e-05,2]
[348864675,1736829038645,-570.12,9.998e-05,2]
[348864677,1736829038656,-507.0496675,9.998e-05,2]
[348864679,1736829038665,-500.0,9.998e-05,2]
[348864681,1736829038675,-500.0,9.998e-05,2]
[348864682,1736829038684,-500.0,9.998e-05,2]
[348864685,1736829038695,-500.0,9.998e-05,2]
[348864687,1736829038704,-506.0541563,9.998e-05,2]
[348864689,1736829038714,-503.66261439,9.998e-05,2]
[348864691,1736829038723,-500.0,9.998e-05,2]
[348864692,1736829038732,-500.0,9.998e-05,2]
[348864694,1736829038741,-500.0,9.998e-05,2]
[348864696,1736829038751,-500.0,9.998e-05,2]
[348864698,1736829038760,-500.0,9.998e-05,2]
[348864700,1736829038769,-500.0,9.998e-05,2]
[348864703,1736829038780,-500.0,9.998e-05,2]
[348864704,1736829038789,-500.0,9.998e-05,2]
[348864706,1736829038798,-508.56711051,9.998e-05,2]
[348864708,1736829038808,-505.23124055,9.998e-05,2]
[348864710,1736829038818,-500.0,9.998e-05,2]
[348864712,1736829038828,-500.0,9.998e-05,2]
[348864714,1736829038837,-4518.05,9.998e-05,2]
[348864717,1736829038847,-500.0,9.998e-05,2]
[348864718,1736829038856,-500.0,9.998e-05,2]
[348864720,1736829038865,-500.0,9.998e-05,2]
[348864722,1736829038875,-500.0,9.998e-05,2]
[348864724,1736829038885,-500.0,9.998e-05,2]
[348864726,1736829038896,-500.0,9.998e-05,2]
[348864728,1736829038906,-505.45833049,9.998e-05,2]
[348864730,1736829038916,-500.0,9.998e-05,2]
[348864732,1736829038926,-506.02401464,9.998e-05,2]
[348864734,1736829038935,-500.0,9.998e-05,2]
[348864736,1736829038944,-500.0,9.998e-05,2]
[348864738,1736829038953,-500.0,9.998e-05,2]
[348864740,1736829038962,-500.0,9.998e-05,2]
[348864742,1736829038971,-500.0,9.998e-05,2]
[348864744,1736829038980,-500.0,9.998e-05,2]
[348864746,1736829038989,-500.0,9.998e-05,2]
[348864748,1736829038999,-500.0,9.998e-05,2]
[348864750,1736829039008,-500.0,9.998e-05,2]
[348864752,1736829039017,-500.0,9.998e-05,2]
[348864754,1736829039026,-500.0,9.998e-05,2]
[348864756,1736829039035,-500.0,9.998e-05,2]
[348864758,1736829039045,-503.15404756,9.998e-05,2]
[348864760,1736829039054,-500.0,9.998e-05,2]
[348864762,1736829039063,-505.9800125,9.998e-05,2]
[348864764,1736829039072,-500.0,9.998e-05,2]
[348864766,1736829039081,-509.48164724,9.998e-05,2]
[348864768,1736829039092,-500.0,9.998e-05,2]
[348864770,1736829039102,-500.0,9.998e-05,2]
[348864772,1736829039111,-500.0,9.998e-05,2]
[348864774,1736829039120,-500.0,9.998e-05,2]
[348864776,1736829039129,-500.0,9.998e-05,2]
[348864778,1736829039139,-500.0,9.998e-05,2]
[348864780,1736829039150,-500.0,9.998e-05,2]
[348864782,1736829039159,-500.0,9.998e-05,2]
[348864784,1736829039168,-1352.56,9.998e-05,2]
[348864786,1736829039179,-505.34349366,9.998e-05,2]
[348864788,1736829039189,-501.86701556,9.998e-05,2]
[348864790,1736829039199,-500.0,9.998e-05,2]
[348864792,1736829039209,-500.0,9.998e-05,2]
[348864794,1736829039219,-5815.21,9.998e-05,2]
[348864796,1736829039229,-500.0,9.998e-05,2]
[348864798,1736829039240,-500.0,9.998e-05,2]
[348864800,1736829039249,-500.0,9.998e-05,2]
[348864802,1736829039261,-505.07867709,9.998e-05,2]
[348864804,1736829039270,-500.0,9.998e-05,2]
[348864806,1736829039279,-500.0,9.998e-05,2]
[348864808,1736829039289,-500.0,9.998e-05,2]
[348864810,1736829039298,-507.47854506,9.998e-05,2]
[348864812,1736829039307,-500.0,9.998e-05,2]
[348864813,1736829039317,-500.0,9.998e-05,2]
[348864815,1736829039326,-500.0,9.998e-05,2]
[348864817,1736829039335,-500.0,9.998e-05,2]
[348864819,1736829039345,-500.0,9.998e-05,2]
[348864821,1736829039354,-500.0,9.998e-05,2]
[348864823,1736829039364,-500.0,9.998e-05,2]
[348864825,1736829039373,-500.0,9.998e-05,2]
[348864827,1736829039382,-500.0,9.998e-05,2]
[348864829,1736829039390,-500.0,9.998e-05,2]
[348864831,1736829039401,-500.0,9.998e-05,2]
[348864833,1736829039410,-500.0,9.998e-05,2]
[348864835,1736829039420,-500.0,9.998e-05,2]
[348864837,1736829039430,-500.0,9.998e-05,2]
[348864839,1736829039439,-500.0,9.998e-05,2]
[348864841,1736829039448,-500.0,9.998e-05,2]
[348864843,1736829039457,-504.89048461,9.998e-05,2]
[348864846,1736829039466,-500.0,9.998e-05,2]
[348864848,1736829039475,-500.0,9.998e-05,2]
[348864850,1736829039485,-500.0,9.998e-05,2]
[348864852,1736829039494,-500.0,9.998e-05,2]
[348864854,1736829039503,-500.0,9.998e-05,2]
[348864856,1736829039514,-506.33880435,9.998e-05,2]
[348864858,1736829039523,-500.0,9.998e-05,2]
[348864860,1736829039532,-500.0,9.998e-05,2]
[348864862,1736829039541,-503.18,9.998e-05,2]
[348864864,1736829039550,-500.0,9.998e-05,2]
[348864866,1736829039559,-500.0,9.998e-05,2]
[348864868,1736829039568,-500.0,9.998e-05,2]
[348864870,1736829039577,-500.0,9.998e-05,2]
[348864872,1736829039587,-500.0,9.998e-05,2]
[348864874,1736829039595,-500.0,9.998e-05,2]